[Event "Titled Tuesday Blitz June 21 Early 2022"]
[White "Ibrahimli, Murad"]
[Black "Alexiadis, Hristos"]
[WhiteFideId "13410229"]
[BlackFideId "4249623"]
[WhiteElo "2109"]
[BlackElo "2416"]
[Result "1/2-1/2"]
[Round "03"]
[TimeControl "180+1"]
[Date "2022.06.21"]
[WhiteClock "0:00:28"]
[BlackClock "0:00:20"]

1. e4 {[%clk 0:03:00]}  e5 {[%clk 0:03:00]} 2. Nf3 {[%clk 0:03:00]}  Nc6 {[%clk 0:03:00]} 3. Bc4 {[%clk 0:03:00]}  Bc5 {[%clk 0:02:59]} 4. O-O {[%clk 0:02:59]}  Nf6 {[%clk 0:02:58]} 5. d3 {[%clk 0:03:00]}  d6 {[%clk 0:02:58]} 6. c3 {[%clk 0:03:00]}  a5 {[%clk 0:02:58]} 7. a4 {[%clk 0:02:59]}  O-O {[%clk 0:02:57]} 8. Nbd2 {[%clk 0:03:00]}  h6 {[%clk 0:02:57]} 9. Re1 {[%clk 0:02:59]}  Be6 {[%clk 0:02:58]} 10. h3 {[%clk 0:02:52]}  Ne7 {[%clk 0:02:47]} 11. Bxe6 {[%clk 0:02:51]}  fxe6 {[%clk 0:02:47]} 12. d4 {[%clk 0:02:51]}  exd4 {[%clk 0:02:48]} 13. cxd4 {[%clk 0:02:51]}  Bb6 {[%clk 0:02:48]} 14. Nc4 {[%clk 0:02:50]}  Nc8 {[%clk 0:02:23]} 15. Nxb6 {[%clk 0:02:46]}  Nxb6 {[%clk 0:02:24]} 16. Qb3 {[%clk 0:02:46]}  Qe8 {[%clk 0:02:23]} 17. Bd2 {[%clk 0:02:41]}  Kh8 {[%clk 0:02:20]} 18. Rac1 {[%clk 0:02:32]}  Rf7 {[%clk 0:02:17]} 19. e5 {[%clk 0:02:30]}  Nfd5 {[%clk 0:02:15]} 20. exd6 {[%clk 0:02:25]}  cxd6 {[%clk 0:02:15]} 21. Re4 {[%clk 0:02:14]}  Qxa4 {[%clk 0:02:06]} 22. Qxa4 {[%clk 0:02:12]}  Nxa4 {[%clk 0:02:07]} 23. b3 {[%clk 0:02:12]}  Nab6 {[%clk 0:02:05]} 24. Rxe6 {[%clk 0:02:13]}  Rd7 {[%clk 0:02:04]} 25. Nh4 {[%clk 0:02:09]}  a4 {[%clk 0:02:01]} 26. bxa4 {[%clk 0:02:09]}  Rxa4 {[%clk 0:02:01]} 27. Nf5 {[%clk 0:02:09]}  Nc4 {[%clk 0:01:50]} 28. Be1 {[%clk 0:02:00]}  b5 {[%clk 0:01:50]} 29. f3 {[%clk 0:01:59]}  Ra2 {[%clk 0:01:35]} 30. Rb1 {[%clk 0:01:53]}  Rf7 {[%clk 0:01:34]} 31. Nxd6 {[%clk 0:01:39]}  Nxd6 {[%clk 0:01:35]} 32. Rxd6 {[%clk 0:01:40]}  Nf4 {[%clk 0:01:35]} 33. Bf2 {[%clk 0:01:37]}  Re7 {[%clk 0:01:33]} 34. Rd8+ {[%clk 0:01:03]}  Kh7 {[%clk 0:01:32]} 35. Rf8 {[%clk 0:01:03]}  Nd3 {[%clk 0:01:23]} 36. Bg3 {[%clk 0:00:26]}  Ree2 {[%clk 0:01:23]} 37. Kh1 {[%clk 0:00:26]}  Rxg2 {[%clk 0:01:10]} 38. Rg1 {[%clk 0:00:27]}  Rxg1+ {[%clk 0:00:36]} 39. Kxg1 {[%clk 0:00:27]}  b4 {[%clk 0:00:36]} 40. Rb8 {[%clk 0:00:27]}  Rd2 {[%clk 0:00:32]} 41. d5 {[%clk 0:00:25]}  Nc1 {[%clk 0:00:22]} 42. Rxb4 {[%clk 0:00:19]}  Ne2+ {[%clk 0:00:22]} 43. Kf2 {[%clk 0:00:20]}  Nxg3+ {[%clk 0:00:23]} 44. Kxg3 {[%clk 0:00:20]}  Rxd5 {[%clk 0:00:24]} 45. h4 {[%clk 0:00:20]}  Rd6 {[%clk 0:00:23]} 46. Rf4 {[%clk 0:00:21]}  Rg6+ {[%clk 0:00:23]} 47. Kf2 {[%clk 0:00:21]}  Ra6 {[%clk 0:00:24]} 48. Re4 {[%clk 0:00:21]}  Ra2+ {[%clk 0:00:23]} 49. Kg3 {[%clk 0:00:22]}  Ra6 {[%clk 0:00:24]} 50. Re7 {[%clk 0:00:22]}  Rg6+ {[%clk 0:00:24]} 51. Kf4 {[%clk 0:00:22]}  Rf6+ {[%clk 0:00:25]} 52. Kg4 {[%clk 0:00:23]}  Rg6+ {[%clk 0:00:26]} 53. Kh3 {[%clk 0:00:23]}  Rf6 {[%clk 0:00:26]} 54. Re3 {[%clk 0:00:24]}  Kg6 {[%clk 0:00:26]} 55. Kg4 {[%clk 0:00:24]}  h5+ {[%clk 0:00:25]} 56. Kg3 {[%clk 0:00:24]}  Ra6 {[%clk 0:00:25]} 57. Re5 {[%clk 0:00:25]}  Kh6 {[%clk 0:00:26]} 58. Rg5 {[%clk 0:00:25]}  g6 {[%clk 0:00:26]} 59. Rd5 {[%clk 0:00:25]}  Ra1 {[%clk 0:00:26]} 60. Rd8 {[%clk 0:00:26]}  Rg1+ {[%clk 0:00:26]} 61. Kh2 {[%clk 0:00:26]}  Rf1 {[%clk 0:00:26]} 62. Kg2 {[%clk 0:00:27]}  Ra1 {[%clk 0:00:26]} 63. Rd7 {[%clk 0:00:27]}  Ra2+ {[%clk 0:00:26]} 64. Kg3 {[%clk 0:00:27]}  Ra1 {[%clk 0:00:27]} 65. Rd6 {[%clk 0:00:28]}  Rg1+ {[%clk 0:00:27]} 66. Kh2 {[%clk 0:00:29]}  Ra1 {[%clk 0:00:27]} 67. Kg2 {[%clk 0:00:29]}  Ra4 {[%clk 0:00:27]} 68. Kg3 {[%clk 0:00:28]}  Ra5 {[%clk 0:00:27]} 69. Rd3 {[%clk 0:00:28]}  Ra1 {[%clk 0:00:27]} 70. Rc3 {[%clk 0:00:27]}  Rg1+ {[%clk 0:00:28]} 71. Kh2 {[%clk 0:00:28]}  Rf1 {[%clk 0:00:28]} 72. Kg2 {[%clk 0:00:28]}  Ra1 {[%clk 0:00:28]} 73. Rc4 {[%clk 0:00:29]}  Ra2+ {[%clk 0:00:29]} 74. Kg3 {[%clk 0:00:29]}  Ra1 {[%clk 0:00:29]} 75. Rf4 {[%clk 0:00:29]}  Rg1+ {[%clk 0:00:29]} 76. Kf2 {[%clk 0:00:30]}  Rh1 {[%clk 0:00:29]} 77. Re4 {[%clk 0:00:30]}  Rh2+ {[%clk 0:00:28]} 78. Kg3 {[%clk 0:00:29]}  Ra2 {[%clk 0:00:29]} 79. Re3 {[%clk 0:00:30]}  Ra1 {[%clk 0:00:29]} 80. f4 {[%clk 0:00:30]}  Rg1+ {[%clk 0:00:29]} 81. Kh2 {[%clk 0:00:29]}  Rf1 {[%clk 0:00:29]} 82. Re4 {[%clk 0:00:29]}  Ra1 {[%clk 0:00:22]} 83. Re6 {[%clk 0:00:28]}  Kg7 {[%clk 0:00:22]} 84. Kg3 {[%clk 0:00:27]}  Rg1+ {[%clk 0:00:21]} 85. Kf2 {[%clk 0:00:26]}  Rg4 {[%clk 0:00:21]} 86. Kf3 {[%clk 0:00:25]}  Rxh4 {[%clk 0:00:21]} 87. Re7+ {[%clk 0:00:25]}  Kf6 {[%clk 0:00:21]} 88. Ra7 {[%clk 0:00:26]}  Rh3+ {[%clk 0:00:22]} 89. Ke4 {[%clk 0:00:26]}  Rb3 {[%clk 0:00:21]} 90. Ra6+ {[%clk 0:00:27]}  Kg7 {[%clk 0:00:21]} 91. Ra7+ {[%clk 0:00:27]}  Kh6 {[%clk 0:00:22]} 92. Ra8 {[%clk 0:00:27]}  Rb4+ {[%clk 0:00:20]} 93. Kf3 {[%clk 0:00:27]}  Kg7 {[%clk 0:00:19]} 94. Ra7+ {[%clk 0:00:27]}  Kh6 {[%clk 0:00:19]} 95. Ra8 {[%clk 0:00:27]}  Rb5 {[%clk 0:00:19]} 96. Kg3 {[%clk 0:00:26]}  Rf5 {[%clk 0:00:19]} 97. Ra6 {[%clk 0:00:25]}  Kg7 {[%clk 0:00:19]} 98. Ra7+ {[%clk 0:00:25]}  Rf7 {[%clk 0:00:19]} 99. Ra8 {[%clk 0:00:25]}  Re7 {[%clk 0:00:19]} 100. Ra6 {[%clk 0:00:25]}  Kf7 {[%clk 0:00:19]} 101. f5 {[%clk 0:00:23]}  gxf5 {[%clk 0:00:13]} 102. Kf4 {[%clk 0:00:23]}  Re6 {[%clk 0:00:12]} 103. Ra5 {[%clk 0:00:22]}  Kg6 {[%clk 0:00:13]} 104. Rxf5 {[%clk 0:00:21]}  Rf6 {[%clk 0:00:12]} 105. Rxf6+ {[%clk 0:00:21]}  Kxf6 {[%clk 0:00:13]} 106. Kg3 {[%clk 0:00:22]}  Kg5 {[%clk 0:00:13]} 107. Kh3 {[%clk 0:00:23]}  h4 {[%clk 0:00:14]} 108. Kh2 {[%clk 0:00:24]}  Kh5 {[%clk 0:00:15]} 109. Kh1 {[%clk 0:00:25]}  Kg4 {[%clk 0:00:16]} 110. Kg1 {[%clk 0:00:25]}  h3 {[%clk 0:00:16]} 111. Kh1 {[%clk 0:00:26]}  Kh4 {[%clk 0:00:17]} 112. Kh2 {[%clk 0:00:27]}  Kg4 {[%clk 0:00:18]} 113. Kh1 {[%clk 0:00:27]}  Kg3 {[%clk 0:00:18]} 114. Kg1 {[%clk 0:00:28]}  h2+ {[%clk 0:00:19]} 115. Kh1 {[%clk 0:00:28]}  Kh3 {[%clk 0:00:20]} 1/2-1/2


[Site "https://www.chess.com"]

[Event "Titled Tuesday Blitz June 21 Early 2022"]
[White "Jaferian, Koosha"]
[Black "Sethuraman, S.P."]
[WhiteFideId "12507440"]
[BlackFideId "5021596"]
[WhiteElo "2030"]
[BlackElo "2473"]
[Result "1/2-1/2"]
[Round "03"]
[TimeControl "180+1"]
[Date "2022.06.21"]
[WhiteClock "0:00:09"]
[BlackClock "0:00:06"]

1. Nf3 {[%clk 0:03:00]}  c5 {[%clk 0:02:58]} 2. b3 {[%clk 0:03:01]}  d6 {[%clk 0:02:57]} 3. d4 {[%clk 0:03:01]}  cxd4 {[%clk 0:02:56]} 4. Nxd4 {[%clk 0:03:02]}  Nf6 {[%clk 0:02:54]} 5. Bb2 {[%clk 0:03:02]}  e5 {[%clk 0:02:51]} 6. Nb5 {[%clk 0:02:50]}  a6 {[%clk 0:02:48]} 7. N5a3 {[%clk 0:02:45]}  d5 {[%clk 0:02:39]} 8. e3 {[%clk 0:02:39]}  Nc6 {[%clk 0:02:37]} 9. Be2 {[%clk 0:02:37]}  b5 {[%clk 0:02:28]} 10. c3 {[%clk 0:02:31]}  Bb7 {[%clk 0:02:18]} 11. Nc2 {[%clk 0:02:28]}  Be7 {[%clk 0:02:15]} 12. O-O {[%clk 0:02:28]}  O-O {[%clk 0:02:15]} 13. a4 {[%clk 0:02:27]}  bxa4 {[%clk 0:02:02]} 14. Rxa4 {[%clk 0:02:27]}  a5 {[%clk 0:02:01]} 15. c4 {[%clk 0:02:23]}  dxc4 {[%clk 0:01:48]} 16. Bxc4 {[%clk 0:02:23]}  Nd7 {[%clk 0:01:47]} 17. Bb5 {[%clk 0:02:14]}  Nc5 {[%clk 0:01:44]} 18. Rc4 {[%clk 0:02:07]}  Qxd1 {[%clk 0:01:31]} 19. Rxd1 {[%clk 0:02:06]}  Rad8 {[%clk 0:01:30]} 20. Rf1 {[%clk 0:01:43]}  Na7 {[%clk 0:01:28]} 21. Ba3 {[%clk 0:01:36]}  Rc8 {[%clk 0:01:19]} 22. Bxc5 {[%clk 0:01:28]}  Bxc5 {[%clk 0:01:18]} 23. Rc1 {[%clk 0:00:57]}  Nxb5 {[%clk 0:01:14]} 24. Ne1 {[%clk 0:00:56]}  Be7 {[%clk 0:01:04]} 25. Nd3 {[%clk 0:00:55]}  f6 {[%clk 0:00:59]} 26. Nd2 {[%clk 0:00:51]}  Nd6 {[%clk 0:00:54]} 27. Rc7 {[%clk 0:00:49]}  Rfe8 {[%clk 0:00:43]} 28. h4 {[%clk 0:00:37]}  Ba6 {[%clk 0:00:43]} 29. Nb2 {[%clk 0:00:35]}  Kf8 {[%clk 0:00:31]} 30. Na4 {[%clk 0:00:35]}  Nb5 {[%clk 0:00:20]} 31. R7c6 {[%clk 0:00:33]}  Bb7 {[%clk 0:00:19]} 32. R6c4 {[%clk 0:00:31]}  Rxc4 {[%clk 0:00:16]} 33. Nxc4 {[%clk 0:00:32]}  Bb4 {[%clk 0:00:16]} 34. Rd1 {[%clk 0:00:31]}  Ke7 {[%clk 0:00:14]} 35. Nab6 {[%clk 0:00:30]}  Rd8 {[%clk 0:00:14]} 36. Ra1 {[%clk 0:00:30]}  Bc3 {[%clk 0:00:09]} 37. Rc1 {[%clk 0:00:22]}  Bb4 {[%clk 0:00:09]} 38. Ra1 {[%clk 0:00:22]}  Be4 {[%clk 0:00:08]} 39. Nxa5 {[%clk 0:00:20]}  Bxa5 {[%clk 0:00:06]} 40. Rxa5 {[%clk 0:00:20]}  Nd6 {[%clk 0:00:07]} 41. Ra7+ {[%clk 0:00:20]}  Bb7 {[%clk 0:00:07]} 42. Nc4 {[%clk 0:00:19]}  Rd7 {[%clk 0:00:06]} 43. Nb6 {[%clk 0:00:19]}  Rc7 {[%clk 0:00:05]} 44. Nd5+ {[%clk 0:00:20]}  Kd8 {[%clk 0:00:03]} 45. Nxc7 {[%clk 0:00:19]}  Kxc7 {[%clk 0:00:04]} 46. Ra1 {[%clk 0:00:17]}  Kb6 {[%clk 0:00:04]} 47. Rd1 {[%clk 0:00:17]}  Kc5 {[%clk 0:00:04]} 48. Rc1+ {[%clk 0:00:18]}  Kb4 {[%clk 0:00:04]} 49. Rd1 {[%clk 0:00:18]}  Kc5 {[%clk 0:00:04]} 50. Rc1+ {[%clk 0:00:18]}  Kb6 {[%clk 0:00:04]} 51. Rd1 {[%clk 0:00:19]}  Kc7 {[%clk 0:00:05]} 52. Rc1+ {[%clk 0:00:19]}  Bc6 {[%clk 0:00:06]} 53. f3 {[%clk 0:00:19]}  Kd7 {[%clk 0:00:07]} 54. e4 {[%clk 0:00:20]}  f5 {[%clk 0:00:07]} 55. exf5 {[%clk 0:00:20]}  Nxf5 {[%clk 0:00:08]} 56. h5 {[%clk 0:00:15]}  Kd6 {[%clk 0:00:08]} 57. Kf2 {[%clk 0:00:14]}  Nd4 {[%clk 0:00:08]} 58. Rb1 {[%clk 0:00:12]}  Bd5 {[%clk 0:00:08]} 59. b4 {[%clk 0:00:12]}  Nb5 {[%clk 0:00:08]} 60. Ra1 {[%clk 0:00:11]}  e4 {[%clk 0:00:08]} 61. fxe4 {[%clk 0:00:11]}  Bxe4 {[%clk 0:00:09]} 62. Ra6+ {[%clk 0:00:11]}  Kd5 {[%clk 0:00:08]} 63. Rb6 {[%clk 0:00:09]}  Kc4 {[%clk 0:00:09]} 64. Re6 {[%clk 0:00:09]}  Bf5 {[%clk 0:00:08]} 65. Re7 {[%clk 0:00:09]}  g5 {[%clk 0:00:08]} 66. hxg6 {[%clk 0:00:06]}  hxg6 {[%clk 0:00:07]} 67. Kg3 {[%clk 0:00:07]}  Kxb4 {[%clk 0:00:07]} 68. Kf4 {[%clk 0:00:07]}  Kc5 {[%clk 0:00:07]} 69. Kg5 {[%clk 0:00:07]}  Nc3 {[%clk 0:00:07]} 70. Rg7 {[%clk 0:00:06]}  Ne4+ {[%clk 0:00:07]} 71. Kh6 {[%clk 0:00:07]}  Kd4 {[%clk 0:00:05]} 72. Rxg6 {[%clk 0:00:07]}  Bxg6 {[%clk 0:00:05]} 73. Kxg6 {[%clk 0:00:08]}  Ke3 {[%clk 0:00:06]} 74. g4 {[%clk 0:00:09]}  Kf4 {[%clk 0:00:06]} 75. g5 {[%clk 0:00:09]}  Nxg5 {[%clk 0:00:06]} 1/2-1/2


[Site "https://www.chess.com"]

[Event "Titled Tuesday Blitz June 21 Early 2022"]
[White "Jaracz, Pawel"]
[Black "Yilmaz, Mustafa"]
[WhiteFideId "1102222"]
[BlackFideId "6302718"]
[WhiteElo "2459"]
[BlackElo "2568"]
[Result "0-1"]
[Round "03"]
[TimeControl "180+1"]
[Date "2022.06.21"]
[WhiteClock "0:00:07"]
[BlackClock "0:00:17"]

1. e4 {[%clk 0:03:00]}  c5 {[%clk 0:02:59]} 2. Nf3 {[%clk 0:02:59]}  d6 {[%clk 0:03:00]} 3. Bb5+ {[%clk 0:02:59]}  Nd7 {[%clk 0:03:00]} 4. d4 {[%clk 0:02:57]}  cxd4 {[%clk 0:02:59]} 5. Qxd4 {[%clk 0:02:57]}  a6 {[%clk 0:02:58]} 6. Bxd7+ {[%clk 0:02:58]}  Qxd7 {[%clk 0:02:57]} 7. O-O {[%clk 0:02:53]}  e5 {[%clk 0:02:57]} 8. Qd3 {[%clk 0:02:53]}  Qc6 {[%clk 0:02:58]} 9. c4 {[%clk 0:02:51]}  f5 {[%clk 0:02:58]} 10. Nc3 {[%clk 0:02:49]}  Nf6 {[%clk 0:02:58]} 11. exf5 {[%clk 0:02:26]}  Be7 {[%clk 0:02:58]} 12. Re1 {[%clk 0:02:21]}  O-O {[%clk 0:02:57]} 13. Bg5 {[%clk 0:02:16]}  Qd7 {[%clk 0:02:34]} 14. Bxf6 {[%clk 0:02:16]}  Bxf6 {[%clk 0:02:24]} 15. Rad1 {[%clk 0:02:08]}  Qxf5 {[%clk 0:01:48]} 16. Qxf5 {[%clk 0:02:05]}  Bxf5 {[%clk 0:01:49]} 17. Rxd6 {[%clk 0:01:44]}  Rac8 {[%clk 0:01:49]} 18. Nxe5 {[%clk 0:01:35]}  Rfe8 {[%clk 0:01:45]} 19. f4 {[%clk 0:01:35]}  Rxc4 {[%clk 0:01:44]} 20. Nd5 {[%clk 0:01:29]}  Bh4 {[%clk 0:00:38]} 21. g3 {[%clk 0:01:28]}  Bd8 {[%clk 0:00:38]} 22. Nxc4 {[%clk 0:01:18]}  Rxe1+ {[%clk 0:00:38]} 23. Kf2 {[%clk 0:01:18]}  Re8 {[%clk 0:00:36]} 24. Rxd8 {[%clk 0:01:18]}  Rxd8 {[%clk 0:00:34]} 25. Ne7+ {[%clk 0:01:18]}  Kf8 {[%clk 0:00:34]} 26. Nxf5 {[%clk 0:01:18]}  b5 {[%clk 0:00:35]} 27. Ne5 {[%clk 0:00:45]}  Rd2+ {[%clk 0:00:34]} 28. Ke3 {[%clk 0:00:45]}  Rxb2 {[%clk 0:00:35]} 29. a3 {[%clk 0:00:14]}  Rxh2 {[%clk 0:00:19]} 30. Nd7+ {[%clk 0:00:11]}  Kf7 {[%clk 0:00:18]} 31. Nc5 {[%clk 0:00:12]}  Ra2 {[%clk 0:00:18]} 32. Nd6+ {[%clk 0:00:08]}  Kg8 {[%clk 0:00:17]} 33. a4 {[%clk 0:00:08]}  bxa4 {[%clk 0:00:16]} 34. g4 {[%clk 0:00:07]}  a3 {[%clk 0:00:17]} 0-1


[Site "https://www.chess.com"]

[Event "Titled Tuesday Blitz June 21 Early 2022"]
[White "Kvaloy, Aksel Bu"]
[Black "Sankalan Shah"]
[WhiteFideId "1528815"]
[BlackFideId "25600362"]
[WhiteElo "2006"]
[BlackElo "1648"]
[Result "1-0"]
[Round "03"]
[TimeControl "180+1"]
[Date "2022.06.22"]
[WhiteClock "0:02:36"]
[BlackClock "0:01:52"]

1. e4 {[%clk 0:03:00]}  e5 {[%clk 0:02:58]} 2. Nf3 {[%clk 0:03:00]}  Nc6 {[%clk 0:02:58]} 3. Bb5 {[%clk 0:02:55]}  Nf6 {[%clk 0:02:58]} 4. d3 {[%clk 0:02:52]}  Bc5 {[%clk 0:02:57]} 5. Bxc6 {[%clk 0:02:52]}  dxc6 {[%clk 0:02:56]} 6. O-O {[%clk 0:02:52]}  Bd6 {[%clk 0:02:44]} 7. c3 {[%clk 0:02:52]}  O-O {[%clk 0:02:44]} 8. d4 {[%clk 0:02:46]}  Bg4 {[%clk 0:02:12]} 9. dxe5 {[%clk 0:02:41]}  Bxf3 {[%clk 0:02:05]} 10. gxf3 {[%clk 0:02:37]}  Bxe5 {[%clk 0:02:04]} 11. Qxd8 {[%clk 0:02:36]}  Rfxd8 {[%clk 0:01:56]} 12. f4 {[%clk 0:02:36]}  Nxe4 {[%clk 0:01:52]} 13. fxe5 {[%clk 0:02:36]} 1-0


[Site "https://www.chess.com"]

[Event "Titled Tuesday Blitz June 21 Early 2022"]
[White "Ladan, Nicholas"]
[Black "Sovetbekova, Nurai"]
[WhiteFideId "30918855"]
[BlackFideId "13801910"]
[WhiteElo "2167"]
[BlackElo "1646"]
[Result "1-0"]
[Round "03"]
[TimeControl "180+1"]
[Date "2022.06.22"]
[WhiteClock "0:01:06"]
[BlackClock "0:00:04"]

1. d4 {[%clk 0:03:00]}  Nf6 {[%clk 0:02:58]} 2. Nf3 {[%clk 0:03:00]}  g6 {[%clk 0:02:57]} 3. Nc3 {[%clk 0:02:57]}  d5 {[%clk 0:02:55]} 4. Bf4 {[%clk 0:02:54]}  Bg7 {[%clk 0:02:55]} 5. h4 {[%clk 0:02:54]}  O-O {[%clk 0:02:52]} 6. e3 {[%clk 0:02:53]}  c5 {[%clk 0:02:52]} 7. h5 {[%clk 0:02:50]}  Nxh5 {[%clk 0:02:46]} 8. Rxh5 {[%clk 0:02:49]}  gxh5 {[%clk 0:02:46]} 9. Ne5 {[%clk 0:02:35]}  cxd4 {[%clk 0:02:38]} 10. exd4 {[%clk 0:02:33]}  Nc6 {[%clk 0:02:34]} 11. Qxh5 {[%clk 0:02:22]}  Nxd4 {[%clk 0:02:23]} 12. O-O-O {[%clk 0:02:21]}  Nf5 {[%clk 0:01:55]} 13. Bd3 {[%clk 0:02:15]}  e6 {[%clk 0:01:46]} 14. g4 {[%clk 0:02:13]}  Qh4 {[%clk 0:01:37]} 15. Rh1 {[%clk 0:01:38]}  Qxh5 {[%clk 0:01:31]} 16. Rxh5 {[%clk 0:01:39]}  f6 {[%clk 0:01:04]} 17. Nf3 {[%clk 0:01:23]}  e5 {[%clk 0:00:38]} 18. gxf5 {[%clk 0:01:12]}  exf4 {[%clk 0:00:35]} 19. Nxd5 {[%clk 0:01:12]}  Kf7 {[%clk 0:00:18]} 20. Bc4 {[%clk 0:01:10]}  b5 {[%clk 0:00:08]} 21. Bb3 {[%clk 0:01:09]}  Ke8 {[%clk 0:00:05]} 22. Nc7+ {[%clk 0:01:08]}  Kd7 {[%clk 0:00:06]} 23. Nxa8 {[%clk 0:01:08]}  Bb7 {[%clk 0:00:05]} 24. Rxh7 {[%clk 0:01:06]}  Bxa8 {[%clk 0:00:03]} 25. Rxg7+ {[%clk 0:01:07]}  Kc6 {[%clk 0:00:04]} 26. Nd4+ {[%clk 0:01:06]} 1-0


[Site "https://www.chess.com"]

[Event "Titled Tuesday Blitz June 21 Early 2022"]
[White "Lauridsen, Jesper Morch"]
[Black "Ferreira, Vitor Hugo Vieira"]
[WhiteFideId "1401890"]
[BlackFideId "2119765"]
[WhiteElo "2214"]
[BlackElo "2165"]
[Result "0-1"]
[Round "03"]
[TimeControl "180+1"]
[Date "2022.06.22"]
[WhiteClock "0:01:14"]
[BlackClock "0:01:32"]

1. e4 {[%clk 0:03:00]}  c5 {[%clk 0:02:59]} 2. c3 {[%clk 0:03:00]}  d5 {[%clk 0:02:59]} 3. exd5 {[%clk 0:02:59]}  Qxd5 {[%clk 0:02:59]} 4. Nf3 {[%clk 0:03:00]}  Nf6 {[%clk 0:02:59]} 5. d4 {[%clk 0:02:59]}  Nc6 {[%clk 0:02:59]} 6. dxc5 {[%clk 0:02:58]}  Qxd1+ {[%clk 0:02:58]} 7. Kxd1 {[%clk 0:02:58]}  Ne4 {[%clk 0:02:58]} 8. Be3 {[%clk 0:02:56]}  e5 {[%clk 0:02:58]} 9. b4 {[%clk 0:02:48]}  Bg4 {[%clk 0:02:49]} 10. Kc2 {[%clk 0:02:36]}  O-O-O {[%clk 0:02:34]} 11. Bc4 {[%clk 0:02:33]}  f6 {[%clk 0:02:30]} 12. h3 {[%clk 0:02:28]}  Bf5 {[%clk 0:02:29]} 13. Kb2 {[%clk 0:02:07]}  a5 {[%clk 0:02:26]} 14. a3 {[%clk 0:01:56]}  Be7 {[%clk 0:02:13]} 15. Nbd2 {[%clk 0:01:53]}  Nxd2 {[%clk 0:02:04]} 16. Nxd2 {[%clk 0:01:51]}  e4 {[%clk 0:01:51]} 17. Rhd1 {[%clk 0:01:40]}  Ne5 {[%clk 0:01:50]} 18. g4 {[%clk 0:01:21]}  Rxd2+ {[%clk 0:01:47]} 19. Bxd2 {[%clk 0:01:18]}  Nxc4+ {[%clk 0:01:46]} 20. Kb3 {[%clk 0:01:17]}  Be6 {[%clk 0:01:45]} 21. Ka4 {[%clk 0:01:17]}  Nb2+ {[%clk 0:01:39]} 22. Kxa5 {[%clk 0:01:16]}  Bd8+ {[%clk 0:01:33]} 23. Kb5 {[%clk 0:01:14]}  Bc4# {[%clk 0:01:32]} 0-1


[Site "https://www.chess.com"]

[Event "Titled Tuesday Blitz June 21 Early 2022"]
[White "Lazavik, Denis"]
[Black "Matinian, Nikita"]
[WhiteFideId "13515110"]
[BlackFideId "24129100"]
[WhiteElo "2437"]
[BlackElo "2422"]
[Result "1-0"]
[Round "03"]
[TimeControl "180+1"]
[Date "2022.06.21"]
[WhiteClock "0:00:35"]
[BlackClock "0:00:14"]

1. d4 {[%clk 0:03:00]}  Nf6 {[%clk 0:02:59]} 2. c4 {[%clk 0:03:01]}  g6 {[%clk 0:02:58]} 3. Nf3 {[%clk 0:03:01]}  Bg7 {[%clk 0:02:58]} 4. g3 {[%clk 0:03:02]}  O-O {[%clk 0:02:59]} 5. Bg2 {[%clk 0:03:02]}  d6 {[%clk 0:03:00]} 6. Nc3 {[%clk 0:03:01]}  Nc6 {[%clk 0:03:00]} 7. O-O {[%clk 0:03:02]}  e5 {[%clk 0:03:00]} 8. dxe5 {[%clk 0:03:01]}  dxe5 {[%clk 0:03:01]} 9. Bg5 {[%clk 0:03:00]}  h6 {[%clk 0:02:58]} 10. Qxd8 {[%clk 0:02:54]}  Rxd8 {[%clk 0:02:58]} 11. Bxf6 {[%clk 0:02:54]}  Bxf6 {[%clk 0:02:59]} 12. Nd5 {[%clk 0:02:55]}  Kg7 {[%clk 0:02:59]} 13. Nxc7 {[%clk 0:02:55]}  Rb8 {[%clk 0:03:00]} 14. e4 {[%clk 0:02:54]}  Be6 {[%clk 0:02:59]} 15. Nd5 {[%clk 0:02:44]}  Rbc8 {[%clk 0:02:49]} 16. Rfd1 {[%clk 0:02:40]}  Bg4 {[%clk 0:02:42]} 17. Rd3 {[%clk 0:02:31]}  Bxf3 {[%clk 0:02:40]} 18. Bxf3 {[%clk 0:02:30]}  Nd4 {[%clk 0:02:40]} 19. b3 {[%clk 0:02:29]}  Bg5 {[%clk 0:02:34]} 20. h4 {[%clk 0:02:27]}  Bf6 {[%clk 0:02:24]} 21. h5 {[%clk 0:02:21]}  g5 {[%clk 0:02:08]} 22. Bg4 {[%clk 0:02:19]}  Rc6 {[%clk 0:02:06]} 23. Rad1 {[%clk 0:02:17]}  a5 {[%clk 0:02:05]} 24. Kg2 {[%clk 0:02:14]}  a4 {[%clk 0:02:02]} 25. Ne3 {[%clk 0:02:06]}  axb3 {[%clk 0:01:57]} 26. axb3 {[%clk 0:02:07]}  Ra8 {[%clk 0:01:57]} 27. Nf5+ {[%clk 0:02:05]}  Kh7 {[%clk 0:01:49]} 28. Nxd4 {[%clk 0:02:02]}  exd4 {[%clk 0:01:50]} 29. f4 {[%clk 0:02:03]}  Ra2+ {[%clk 0:01:49]} 30. Kf3 {[%clk 0:02:02]}  gxf4 {[%clk 0:01:48]} 31. gxf4 {[%clk 0:02:02]}  Rb2 {[%clk 0:01:40]} 32. e5 {[%clk 0:02:00]}  Bh4 {[%clk 0:01:40]} 33. R1d2 {[%clk 0:01:54]}  Rxd2 {[%clk 0:01:36]} 34. Rxd2 {[%clk 0:01:54]}  Rb6 {[%clk 0:01:37]} 35. Rd3 {[%clk 0:01:53]}  Kg7 {[%clk 0:01:32]} 36. Bf5 {[%clk 0:01:41]}  Be1 {[%clk 0:01:25]} 37. Rxd4 {[%clk 0:01:16]}  Rxb3+ {[%clk 0:01:26]} 38. Ke4 {[%clk 0:01:13]}  Rc3 {[%clk 0:01:13]} 39. Kd5 {[%clk 0:00:56]}  Bf2 {[%clk 0:01:10]} 40. Rd1 {[%clk 0:00:56]}  Be3 {[%clk 0:01:04]} 41. Rf1 {[%clk 0:00:56]}  b6 {[%clk 0:00:48]} 42. Be4 {[%clk 0:00:54]}  Rc1 {[%clk 0:00:44]} 43. Rf3 {[%clk 0:00:53]}  Rd1+ {[%clk 0:00:29]} 44. Kc6 {[%clk 0:00:53]}  Bc5 {[%clk 0:00:30]} 45. f5 {[%clk 0:00:50]}  Kf8 {[%clk 0:00:30]} 46. Bd5 {[%clk 0:00:49]}  Re1 {[%clk 0:00:25]} 47. e6 {[%clk 0:00:46]}  Rh1 {[%clk 0:00:14]} 48. exf7 {[%clk 0:00:35]}  Rxh5 {[%clk 0:00:14]} 49. Be6 {[%clk 0:00:36]}  Rh4 {[%clk 0:00:13]} 50. Rg3 {[%clk 0:00:34]}  Ke7 {[%clk 0:00:13]} 51. Rg8 {[%clk 0:00:34]}  Kf6 {[%clk 0:00:13]} 52. f8=Q+ {[%clk 0:00:34]}  Bxf8 {[%clk 0:00:13]} 53. Rxf8+ {[%clk 0:00:35]}  Ke5 {[%clk 0:00:14]} 54. Kxb6 {[%clk 0:00:35]} 1-0


[Site "https://www.chess.com"]